fUST/lending_fUST_20240225
["ID","MTS","AMOUNT","RATE_DAILY","PERIOD"]
[315084075,1708805252584,-500.0,0.00019593,2]
[315084076,1708805252610,-517.01448646,0.00019593,2]
[315084077,1708805252637,-500.0,0.00019593,2]
[315084078,1708805252663,-500.0,0.00019593,2]
[315084079,1708805252706,-500.0,0.00019593,2]
[315084080,1708805252739,-185.35559223,0.00019593,2]
[315084081,1708805354132,-6002.92108597,0.00019178,2]
[315084123,1708805432760,-1.27891403,0.00019178,2]
[315084124,1708805432771,-472.55523624,0.00019299,2]
[315084147,1708805438673,-27.44476376,0.00019299,2]
[315084148,1708805438682,-507.32,0.00019299,2]
[315084149,1708805438692,-500.0,0.00019299,2]
[315084150,1708805438702,-464.26572803,0.00019308,2]
[315084152,1708805441937,-4388.86427197,0.00019308,2]
[315084153,1708805441946,-500.0,0.00019308,2]
[315084154,1708805441956,-500.0,0.00019308,2]
[315084155,1708805441966,-500.0,0.00019308,2]
[315084156,1708805441975,-512.53,0.00019308,2]
[315084157,1708805441984,-591.85,0.00019309,2]
[315084158,1708805441994,-599.31,0.00019309,2]
[315084159,1708805442003,-725.14,0.00019309,2]
[315084160,1708805442012,-605.4,0.00019309,2]
[315084161,1708805442022,-500.0,0.00019309,2]
[315084162,1708805442033,-718.63,0.00019309,2]
[315084163,1708805442043,-500.0,0.00019309,2]
[315084164,1708805442052,-500.0,0.00019309,2]
[315084165,1708805442061,-500.0,0.00019309,2]
[315084166,1708805442070,-502.38507005,0.00019309,2]
[315084167,1708805442080,-647.36521792,0.00019309,2]
[315084168,1708805442091,-502.99150723,0.00019309,2]
[315084169,1708805442100,-500.0,0.00019309,2]
[315084170,1708805442109,-500.0,0.00019309,2]
[315084171,1708805442118,-259.71713623,0.00019309,2]
[315084172,1708805442127,-178.4454517,0.00019309,2]
[315084173,1708805442136,-500.0,0.00019319,2]
[315084174,1708805442146,-500.0,0.00019319,2]
[315084175,1708805442156,-1223.5,0.00019319,2]
[315084176,1708805442165,-1258.29,0.00019319,2]
[315084177,1708805442174,-4181.03,0.00019319,2]
[315084178,1708805442183,-1713.48,0.00019319,2]
[315084179,1708805442193,-500.0,0.0001932,2]
[315084180,1708805442203,-6004.2,0.00019452,2]
[315084181,1708805442213,-507.32,0.00019573,2]
[315084182,1708805442223,-500.0,0.00019573,2]
[315084183,1708805442232,-4853.13,0.00019582,2]
[315084184,1708805442240,-500.0,0.00019582,2]
[315084185,1708805442250,-500.0,0.00019582,2]
[315084186,1708805442259,-512.53,0.00019582,2]
[315084187,1708805442268,-591.85,0.00019583,2]
[315084188,1708805442277,-599.31,0.00019583,2]
[315084189,1708805442286,-725.14,0.00019583,2]
[315084190,1708805442295,-605.4,0.00019583,2]
[315084191,1708805442305,-500.0,0.00019583,2]
[315084192,1708805442314,-718.63,0.00019583,2]
[315084193,1708805442323,-500.0,0.00019583,2]
[315084194,1708805442332,-596.53827503,0.00019583,2]
[315084195,1708805442341,-500.0,0.00019583,2]
[315084196,1708805442350,-295.56467022,0.00019592,2]
[315084197,1708805442359,-1101.74,0.00019593,2]
[315084198,1708805442369,-500.0,0.00019593,2]
[315084199,1708805442377,-1223.5,0.00019593,2]
[315084200,1708805442386,-1258.29,0.00019593,2]
[315084201,1708805442395,-4181.03,0.00019593,2]
[315084202,1708805442404,-1713.48,0.00019593,2]
[315084203,1708805442413,-503.61017386,0.00019594,2]
[315084204,1708805442423,-500.0,0.00019594,2]
[315084205,1708805442432,-500.0,0.00019594,2]
[315084206,1708805442441,-510.60834629,0.00019594,2]
[315084207,1708805442451,-500.0,0.00019594,2]
[315084208,1708805442460,-502.33326353,0.00019594,2]
[315084209,1708805442470,-500.0,0.00019594,2]
[315084210,1708805442479,-500.0,0.00019594,2]
[315084211,1708805442488,-460.0,0.00019594,2]
[315084212,1708805442497,-500.0,0.00019594,2]
[315084213,1708805442506,-500.0,0.00019594,2]
[315084214,1708805442515,-641.78533481,0.00019594,2]
[315084215,1708805442524,-500.0,0.00019594,2]
[315084216,1708805442534,-329.83424643,0.00019594,2]
[315084217,1708805442543,-500.0,0.00019594,2]
[315084218,1708805442551,-500.0,0.00019594,2]
[315084219,1708805442561,-500.0,0.00019594,2]
[315084220,1708805442570,-166.666666,0.00019627,2]
[315084221,1708805442579,-6568.63,0.00019716,3]
[315084222,1708805442590,-6004.2,0.00019726,2]
[315084223,1708805442599,-7882.36,0.00019818,3]
[315084224,1708805442608,-9458.83,0.00019828,3]
[315084225,1708805442617,-4960.23,0.00019838,3]
[315084226,1708805442628,-530.46,0.00019847,2]
[315084227,1708805442638,-507.32,0.00019847,2]
[315084228,1708805442646,-500.0,0.00019847,2]
[315084229,1708805442656,-500.0,0.00019848,2]
[315084230,1708805442666,-1128.8,0.00019848,2]
[315084231,1708805442675,-1287.51,0.00019848,2]
[315084232,1708805442684,-705.97,0.00019848,2]
[315084233,1708805442693,-1240.89,0.00019848,2]
[315084234,1708805442702,-4853.13,0.00019856,2]
[315084235,1708805442711,-500.0,0.00019856,2]
[315084236,1708805442720,-512.53,0.00019856,2]
[315084237,1708805442733,-580.73195067,0.00019857,2]
[315084238,1708805442742,-500.0,0.00019857,2]
[315084239,1708805442751,-500.0,0.00019857,2]
[315084240,1708805442760,-407.82208207,0.00019857,2]
[315084241,1708805442770,-591.85,0.00019857,2]
[315084242,1708805442779,-599.31,0.00019857,2]
[315084243,1708805442788,-725.14,0.00019857,2]
[315084244,1708805442797,-605.4,0.00019857,2]
[315084245,1708805442806,-500.0,0.00019857,2]
[315084246,1708805442816,-718.63,0.00019857,2]
[315084247,1708805442824,-500.0,0.00019857,2]
[315084248,1708805442834,-500.0,0.00019857,2]
[315084249,1708805442844,-599.74,0.00019867,2]
[315084250,1708805442852,-2915.69,0.00019867,2]
[315084251,1708805442862,-4591.37,0.00019867,2]
[315084252,1708805442871,-1196.4,0.00019867,2]
[315084253,1708805442880,-1101.74,0.00019867,2]
[315084254,1708805442891,-1223.5,0.00019867,2]
[315084255,1708805442900,-1258.29,0.00019867,2]
[315084256,1708805442909,-4181.03,0.00019867,2]
[315084257,1708805442918,-1713.48,0.00019867,2]
[315084258,1708805442927,-500.0,0.00019868,2]
[315084259,1708805442936,-502.61615205,0.00019868,2]
[315084260,1708805442946,-503.03159799,0.00019868,2]
[315084261,1708805442955,-229.10092995,0.00019868,2]
[315084262,1708805442964,-500.0,0.00019868,2]
[315084263,1708805442975,-500.0,0.00019868,2]
[315084264,1708805442984,-500.0,0.00019868,2]
[315084265,1708805442994,-500.0,0.00019868,2]
[315084266,1708805443004,-544.48,0.00019868,2]
[315084267,1708805443013,-253.22686975,0.0002,2]
[315084268,1708805443023,-6004.2,0.0002,2]
[315084269,1708805443033,-166.666666,0.00020076,2]
[315084270,1708805443043,-530.46,0.00020121,2]
[315084271,1708805443052,-507.32,0.00020121,2]
[315084272,1708805443062,-500.0,0.00020121,2]
[315084273,1708805443071,-500.0,0.00020122,2]
[315084274,1708805443081,-1128.8,0.00020122,2]
[315084275,1708805443091,-1287.51,0.00020122,2]
[315084276,1708805443100,-705.97,0.00020122,2]
[315084277,1708805443110,-1240.89,0.00020122,2]
[315084278,1708805443119,-4853.13,0.0002013,2]
[315084279,1708805443129,-500.0,0.0002013,2]
[315084280,1708805443139,-512.53,0.0002013,2]
[315084281,1708805443149,-500.0,0.00020131,2]
[315084282,1708805443158,-500.0,0.00020131,2]
[315084283,1708805443168,-591.85,0.00020131,2]
[315084284,1708805443178,-599.31,0.00020131,2]
[315084285,1708805443187,-725.14,0.00020131,2]
[315084286,1708805443196,-605.4,0.00020131,2]
[315084287,1708805443206,-500.0,0.00020131,2]
[315084288,1708805443216,-718.63,0.00020131,2]
[315084289,1708805443225,-500.0,0.00020131,2]
[315084290,1708805443235,-500.0,0.0002014,2]
[315084291,1708805443245,-362.88031322,0.0002014,2]
[315084292,1708805443254,-500.0,0.0002014,2]
[315084293,1708805443264,-500.0,0.0002014,2]
[315084294,1708805443273,-500.0,0.0002014,2]
[315084295,1708805443283,-500.0,0.0002014,2]
[315084296,1708805443292,-500.0,0.0002014,2]
[315084297,1708805443302,-500.0,0.0002014,2]
[315084298,1708805443311,-500.0,0.0002014,2]
[315084299,1708805443320,-500.0,0.0002014,2]
[315084300,1708805443329,-500.0,0.0002014,2]
[315084301,1708805443340,-500.0,0.0002014,2]
[315084302,1708805443349,-500.0,0.0002014,2]
[315084303,1708805443358,-599.74,0.00020141,2]
[315084304,1708805443367,-2915.69,0.00020141,2]
[315084305,1708805443377,-4591.37,0.00020141,2]
[315084306,1708805443386,-1196.4,0.00020141,2]
[315084307,1708805443396,-1101.74,0.00020141,2]
[315084308,1708805443406,-1223.5,0.00020141,2]
[315084309,1708805443415,-1258.29,0.00020141,2]
[315084310,1708805443425,-4181.03,0.00020141,2]
[315084311,1708805443435,-1713.48,0.00020141,2]
[315084312,1708805443444,-500.0,0.00020142,2]
[315084313,1708805443453,-500.0,0.00020142,2]
[315084314,1708805443462,-500.0,0.00020142,2]
[315084315,1708805443472,-500.0,0.00020142,2]
[315084316,1708805443482,-500.0,0.00020142,2]
[315084317,1708805443490,-212.93527418,0.00020271,2]
[315084318,1708805443500,-6004.2,0.00020273,2]
[315084319,1708805443509,-237.39225171,0.00020371,2]
[315084320,1708805443518,-215.77884278,0.00020371,2]
[315084321,1708805443528,-500.0,0.00020371,2]
[315084322,1708805443537,-591.29,0.00020371,2]
[315084323,1708805443545,-500.0,0.00020371,2]
[315084324,1708805443554,-501.32633711,0.00020371,2]
[315084325,1708805443564,-500.57831314,0.00020371,2]
[315084326,1708805443574,-500.0,0.00020371,2]
[315084327,1708805443583,-500.73548748,0.00020371,2]
[315084328,1708805443593,-500.90031616,0.00020371,2]
[315084329,1708805443603,-500.0,0.00020371,2]
[315084330,1708805443612,-500.30665054,0.00020371,2]
[315084331,1708805443621,-501.0059932,0.00020371,2]
[315084332,1708805443631,-500.0,0.00020371,2]
[315084333,1708805443640,-500.0,0.00020371,2]
[315084334,1708805443649,-500.71978356,0.00020371,2]
[315084335,1708805443658,-500.79878127,0.00020371,2]
[315084336,1708805443668,-500.55726059,0.00020371,2]
[315084337,1708805443677,-877.76,0.00020371,2]
[315084338,1708805443815,-500.0,0.00020371,2]
[315084339,1708805443826,-530.46,0.00020395,2]
[315084340,1708805443838,-507.32,0.00020395,2]
[315084341,1708805443847,-500.0,0.00020395,2]
[315084342,1708805443857,-500.0,0.00020396,2]
[315084343,1708805443868,-1128.8,0.00020396,2]
[315084344,1708805443878,-1287.51,0.00020396,2]
[315084345,1708805443888,-705.97,0.00020396,2]
[315084346,1708805443898,-1240.89,0.00020396,2]
[315084347,1708805443907,-4853.13,0.00020404,2]
[315084348,1708805443917,-500.0,0.00020404,2]
[315084349,1708805443928,-512.53,0.00020404,2]
[315084350,1708805443937,-500.0,0.00020405,2]
[315084351,1708805443947,-500.0,0.00020405,2]
[315084352,1708805443957,-591.85,0.00020405,2]
[315084353,1708805443967,-599.31,0.00020405,2]
[315084354,1708805443977,-725.14,0.00020405,2]
[315084355,1708805443987,-605.4,0.00020405,2]
[315084357,1708805443997,-500.0,0.00020405,2]
[315084359,1708805444007,-718.63,0.00020405,2]
[315084361,1708805444016,-500.0,0.00020405,2]
[315084362,1708805444026,-599.74,0.00020415,2]
[315084363,1708805444037,-2915.69,0.00020415,2]
[315084364,1708805444047,-4591.37,0.00020415,2]
[315084365,1708805444056,-1196.4,0.00020415,2]
[315084366,1708805444067,-1101.74,0.00020415,2]
[315084367,1708805444076,-1223.5,0.00020415,2]
[315084368,1708805444086,-1258.29,0.00020415,2]
[315084369,1708805444096,-4181.03,0.00020415,2]
[315084370,1708805444105,-1713.48,0.00020415,2]
[315084371,1708805444115,-500.0,0.00020416,2]
[315084372,1708805444124,-500.0,0.00020416,2]
[315084373,1708805444133,-500.0,0.00020416,2]
[315084374,1708805444144,-500.0,0.00020416,2]
[315084375,1708805444153,-620.50613827,0.00020416,2]
[315084376,1708805444163,-212.93527418,0.00020416,2]
[315084377,1708805444172,-86197.06875531,0.00020465,2]
[315084379,1708805444182,-166.666666,0.00020524,2]
[315084381,1708805444191,-2326.555981,0.00020545,2]
[315084383,1708805444201,-1146.768077,0.00020545,2]
[315084385,1708805444210,-169.642877,0.00020545,2]
[315084387,1708805444219,-6004.2,0.00020547,2]
[315084389,1708805444229,-212.93527418,0.00020562,2]
[315084391,1708805444238,-50000.0,0.00020596,2]
[315084393,1708805444248,-500.0,0.00020645,2]
[315084395,1708805444257,-500.0,0.00020645,2]
[315084396,1708805444266,-877.76,0.00020645,2]
[315084398,1708805444276,-530.46,0.00020669,2]
[315084399,1708805444285,-507.32,0.00020669,2]
[315084400,1708805444295,-500.0,0.00020669,2]
[315084401,1708805444305,-1128.8,0.0002067,2]
[315084402,1708805444314,-1287.51,0.0002067,2]
[315084403,1708805444324,-705.97,0.0002067,2]
[315084404,1708805444333,-1240.89,0.0002067,2]
[315084405,1708805444344,-4853.13,0.00020678,2]
[315084406,1708805444354,-500.0,0.00020678,2]
[315084407,1708805444364,-512.53,0.00020678,2]
[315084408,1708805444374,-500.0,0.00020679,2]
[315084409,1708805444383,-500.0,0.00020679,2]
[315084410,1708805444392,-591.85,0.00020679,2]
[315084411,1708805444401,-599.31,0.00020679,2]
[315084412,1708805444410,-725.14,0.00020679,2]
[315084413,1708805444420,-605.4,0.00020679,2]
[315084414,1708805444429,-500.0,0.00020679,2]
[315084415,1708805444439,-718.63,0.00020679,2]
[315084416,1708805444449,-500.0,0.00020679,2]
[315084417,1708805444458,-599.74,0.00020689,2]
[315084418,1708805444468,-2915.69,0.00020689,2]
[315084419,1708805444477,-4591.37,0.00020689,2]
[315084420,1708805444486,-1196.4,0.00020689,2]
[315084421,1708805444495,-1101.74,0.00020689,2]
[315084422,1708805444505,-1223.5,0.00020689,2]
[315084423,1708805444514,-1258.29,0.00020689,2]
[315084424,1708805444522,-4181.03,0.00020689,2]
[315084425,1708805444531,-1713.48,0.00020689,2]
[315084426,1708805444541,-624.00404538,0.0002069,2]
[315084427,1708805444550,-500.0,0.0002069,2]
[315084428,1708805444559,-500.0,0.0002069,2]
[315084429,1708805444569,-500.0,0.0002069,2]
[315084431,1708805444578,-212.93527418,0.00020707,2]
[315084433,1708805444588,-50000.0,0.00020728,2]
[315084435,1708805444597,-19899.8849389,0.00020775,2]
[315084436,1708805444606,-1146.768077,0.00020802,2]
[315084437,1708805444615,-2326.555981,0.00020802,2]
[315084438,1708805444624,-6004.2,0.00020821,2]
[315084439,1708805444633,-212.93527418,0.00020852,2]
[315084440,1708805444642,-50000.0,0.00020859,2]
[315084441,1708805444651,-50000.0,0.00020859,2]
[315084442,1708805444661,-65756.53116797,0.00020864,2]
[315084443,1708805444676,-2107.09578577,0.00020864,2]
[315084444,1708805444720,-500.0,0.0002014,2]
[315084445,1708805444735,-500.0,0.0002014,2]
[315084446,1708805445273,-503.08381531,0.00019309,2]
[315084447,1708805445283,-500.0,0.00019309,2]
[315084448,1708805445293,-500.0,0.00019309,2]
[315084449,1708805445302,-233.25,0.00019583,2]
[315084450,1708805445312,-424.21886548,0.0002014,2]
[315084451,1708805445323,-75.78113452,0.0002014,2]
[315084452,1708805445333,-500.0,0.0002014,2]
[315084453,1708805445342,-500.0,0.0002014,2]
[315084454,1708805445351,-350.51845615,0.0002014,2]
[315084455,1708805445641,-149.48154385,0.0002014,2]
[315084456,1708805445651,-500.0,0.0002014,2]
[315084457,1708805445662,-500.0,0.0002014,2]
[315084458,1708805445673,-500.0,0.0002014,2]
[315084459,1708805445683,-500.0,0.0002014,2]
[315084460,1708805445693,-500.0,0.0002014,2]
[315084461,1708805445703,-500.0,0.0002014,2]
[315084462,1708805445713,-204.04647452,0.0002014,2]
[315084463,1708805445727,-295.95352548,0.0002014,2]
[315084464,1708805445738,-500.0,0.0002014,2]
[315084465,1708805445748,-500.0,0.0002014,2]
[315084466,1708805445758,-500.0,0.0002014,2]
[315084467,1708805445769,-500.0,0.0002014,2]
[315084468,1708805445779,-500.0,0.0002014,2]
[315084469,1708805445789,-500.0,0.0002014,2]
[315084470,1708805445799,-500.0,0.0002014,2]
[315084471,1708805445811,-500.0,0.0002014,2]
[315084472,1708805445821,-500.0,0.0002014,2]
[315084473,1708805445831,-527.19545547,0.0002014,2]
[315084474,1708805445842,-500.0,0.0002014,2]
[315084475,1708805445853,-500.0,0.0002014,2]
[315084476,1708805445863,-500.0,0.0002014,2]
[315084477,1708805445873,-500.0,0.0002014,2]
[315084478,1708805445883,-154.01885904,0.0002014,2]
[315084479,1708805445894,-500.0,0.0002014,2]
[315084480,1708805445904,-500.0,0.0002014,2]
[315084481,1708805445914,-500.0,0.0002014,2]
[315084482,1708805445925,-500.0,0.0002014,2]
[315084483,1708805445935,-500.0,0.0002014,2]
[315084484,1708805445945,-500.0,0.0002014,2]
[315084485,1708805445955,-500.0,0.0002014,2]
[315084486,1708805445966,-500.0,0.0002014,2]
[315084487,1708805445976,-500.0,0.0002014,2]
[315084488,1708805445986,-500.0,0.0002014,2]
[315084489,1708805445995,-500.0,0.0002014,2]
[315084490,1708805446005,-500.0,0.0002014,2]
[315084491,1708805446015,-500.0,0.0002014,2]
[315084492,1708805446025,-500.0,0.0002014,2]
[315084493,1708805446035,-500.0,0.0002014,2]
[315084494,1708805446045,-500.0,0.0002014,2]
[315084495,1708805446055,-500.0,0.0002014,2]
[315084496,1708805446065,-500.0,0.0002014,2]
[315084497,1708805446074,-500.0,0.0002014,2]
[315084498,1708805446084,-500.0,0.0002014,2]
[315084499,1708805446095,-500.0,0.0002014,2]
[315084500,1708805446104,-500.0,0.0002014,2]
[315084501,1708805446114,-500.0,0.0002014,2]
[315084502,1708805446126,-4643.66780242,0.00020864,2]
[315084503,1708805446141,-1024.12789802,0.00020864,2]
[315084504,1708805446153,-323.99482184,0.00020864,2]
[315084505,1708805446163,-500.0,0.00020868,2]
[315084506,1708805446174,-381.51062569,0.00020868,2]
[315084507,1708805446195,-118.48937431,0.00020868,2]
[315084508,1708805446205,-500.0,0.00020868,2]
[315084509,1708805446215,-500.0,0.00020868,2]
[315084510,1708805446225,-500.0,0.00020868,2]
[315084511,1708805446235,-500.0,0.00020868,2]
[315084512,1708805446245,-500.0,0.00020868,2]
[315084513,1708805446255,-500.0,0.00020868,2]
[315084514,1708805446264,-500.0,0.00020868,2]
[315084515,1708805446274,-500.0,0.00020868,2]
[315084516,1708805446284,-500.0,0.00020868,2]
[315084517,1708805446294,-500.0,0.00020868,2]
[315084518,1708805446303,-458.13166133,0.00020868,2]
[315084519,1708805446313,-238.53919178,0.00020868,2]
[315084520,1708805446323,-500.0,0.00020868,2]
[315084521,1708805446333,-500.0,0.00020868,2]
[315084522,1708805446343,-500.0,0.00020868,2]
[315084523,1708805446353,-500.0,0.00020868,2]
[315084524,1708805446362,-500.0,0.00020868,2]
[315084525,1708805446371,-500.0,0.00020868,2]
[315084526,1708805446381,-500.0,0.00020868,2]
[315084527,1708805446390,-320.69282924,0.00020868,2]
[315084528,1708805446400,-500.0,0.00020868,2]
[315084529,1708805446410,-500.0,0.00020868,2]
[315084530,1708805446422,-500.0,0.00020868,2]
[315084531,1708805446432,-500.0,0.00020868,2]
[315084532,1708805446442,-500.0,0.00020868,2]
[315084533,1708805446451,-244.39386995,0.00020868,2]
[315084534,1708805446461,-500.0,0.00020868,2]
[315084535,1708805446470,-500.0,0.00020868,2]
[315084536,1708805446480,-57753.32233703,0.00020869,2]
[315084537,1708805446491,-333.31100125,0.0002088,2]
[315084538,1708805446501,-500.0,0.00020919,2]
[315084539,1708805446685,-877.76,0.00020919,2]
[315084540,1708805446696,-530.46,0.00020943,2]
[315084541,1708805446707,-507.32,0.00020943,2]
[315084542,1708805446716,-500.0,0.00020943,2]
[315084543,1708805446728,-1128.8,0.00020944,2]
[315084544,1708805446739,-1287.51,0.00020944,2]
[315084545,1708805446748,-705.97,0.00020944,2]
[315084546,1708805446758,-590.15622617,0.00020944,2]
[315084548,1708805446830,-500.0,0.00019309,2]
[315084549,1708805446840,-97.3,0.00020944,2]
[315084551,1708805447423,-553.43377383,0.00020944,2]
[315084552,1708805447432,-979.7266739,0.00020952,2]
[315084562,1708806557113,-592.96258978,0.00018253,2]
[315084563,1708806557136,-294.3458436,0.00018254,2]
[315084564,1708806557155,-319.38384513,0.000189,2]
[315084565,1708806557178,-166.666666,0.00019178,2]
[315084566,1708806557197,-104.72699695,0.00019178,2]
[315084639,1708806637843,-212.92256342,0.000189,2]
[315084640,1708806637853,-67.72588305,0.00019178,2]
[315084641,1708806637863,-500.0,0.00019309,2]
[315084642,1708806637872,-500.0,0.00019309,2]
[315084643,1708806637881,-145.88509,0.00019309,2]
[315084644,1708806637893,-189.18500229,0.00019309,2]
[315084645,1708806637902,-436.67308305,0.00019309,2]
[315084646,1708806637915,-63.32691695,0.00019309,2]
[315084647,1708806637924,-500.0,0.00019309,2]
[315084648,1708806637934,-500.0,0.00019309,2]
[315084649,1708806637943,-500.0,0.00019309,2]
[315084650,1708806637953,-500.0,0.00019309,2]
[315084651,1708806637962,-500.0,0.00019309,2]
[315084652,1708806637971,-500.0,0.00019309,2]
[315084653,1708806637981,-500.0,0.00019309,2]
[315084654,1708806637990,-4186.18,0.0001945,2]
[315084655,1708806637999,-500.0,0.0001945,2]
[315084656,1708806638008,-500.0,0.0001945,2]
[315084657,1708806638018,-500.0,0.0001945,2]
[315084658,1708806638027,-500.0,0.0001945,2]
[315084659,1708806638037,-500.0,0.0001945,2]
[315084660,1708806638046,-595.29,0.0001945,2]
[315084661,1708806638055,-500.0,0.00019451,2]
[315084662,1708806638065,-500.0,0.00019451,2]
[315084663,1708806638075,-500.0,0.00019451,2]
[315084664,1708806638084,-550.32,0.00019451,2]
[315084665,1708806638094,-500.0,0.00019451,2]
[315084666,1708806638105,-500.0,0.00019451,2]
[315084667,1708806638240,-317.56907617,0.00019451,2]
[315084668,1708806638249,-604.28,0.00019451,2]
[315084669,1708806638258,-500.0,0.00019451,2]
[315084670,1708806638268,-500.0,0.00019451,2]
[315084671,1708806638278,-1101.0,0.00019451,2]
[315084672,1708806638287,-500.0,0.00019451,2]
[315084673,1708806638296,-524.77,0.00019451,2]
[315084674,1708806638305,-2866.9,0.00019451,2]
[315084675,1708806638314,-4554.8,0.00019451,2]
[315084676,1708806638324,-500.0,0.00019451,2]
[315084677,1708806638334,-1128.77,0.00019451,2]
[315084678,1708806638343,-5521.27,0.00019572,2]
[315084679,1708806638353,-500.0,0.00019581,2]
[315084680,1708806638362,-500.0,0.00019581,2]
[315084681,1708806638373,-500.0,0.00019581,2]
[315084682,1708806638382,-500.0,0.00019581,2]
[315084683,1708806638392,-500.0,0.00019581,2]
[315084684,1708806638402,-500.0,0.00019581,2]
[315084685,1708806638412,-500.0,0.00019581,2]
[315084686,1708806638422,-234.72141157,0.00019581,2]
[315084687,1708806638432,-500.0,0.00019581,2]
[315084688,1708806638441,-500.0,0.00019581,2]
[315084689,1708806638450,-631.04,0.00019581,2]
[315084690,1708806638459,-500.0,0.00019581,2]
[315084691,1708806638469,-500.0,0.00019581,2]
[315084692,1708806638478,-500.0,0.00019581,2]
[315084693,1708806638487,-964.03,0.00019581,2]
[315084694,1708806638496,-506.87017122,0.00019581,2]
[315084695,1708806638506,-1070.57,0.00019581,2]
[315084696,1708806638515,-500.0,0.00019581,2]
[315084697,1708806638524,-500.0,0.00019581,2]
[315084698,1708806638534,-500.0,0.00019581,2]
[315084699,1708806638543,-3985.25,0.00019581,2]
[315084700,1708806638552,-500.0,0.00019581,2]
[315084701,1708806638561,-1639.88,0.00019581,2]
[315084702,1708806638571,-500.0,0.00019581,2]
[315084703,1708806638580,-500.0,0.00019582,2]
[315084704,1708806638589,-500.0,0.00019582,2]
[315084705,1708806638599,-500.0,0.00019582,2]
[315084706,1708806638608,-500.0,0.00019582,2]
[315084707,1708806638617,-500.0,0.00019582,2]
[315084708,1708806638627,-1102.89,0.00019582,2]
[315084709,1708806638637,-500.73548748,0.00019582,2]
[315084710,1708806638646,-500.90031616,0.00019582,2]
[315084711,1708806638655,-500.0,0.00019582,2]
[315084712,1708806638664,-500.30665054,0.00019582,2]
[315084713,1708806638673,-501.0059932,0.00019582,2]
[315084714,1708806638682,-500.0,0.00019582,2]
[315084715,1708806638691,-500.0,0.00019582,2]
[315084716,1708806638701,-500.71978356,0.00019582,2]
[315084717,1708806638710,-500.79878127,0.00019582,2]
[315084718,1708806638719,-500.55726059,0.00019582,2]
[315084719,1708806638729,-500.0,0.00019582,2]
[315084720,1708806638739,-500.0,0.00019582,2]
[315084721,1708806638748,-1114.31,0.00019582,2]
[315084722,1708806638757,-598.95,0.00019582,2]
[315084723,1708806638766,-898.89,0.00019582,2]
[315084724,1708806638775,-1057.5,0.00019582,2]
[315084725,1708806638784,-500.0,0.00019583,2]
[315084726,1708806638793,-524.10434703,0.00019583,2]
[315084727,1708806638803,-500.0,0.00019583,2]
[315084728,1708806638812,-500.0,0.00019583,2]
[315084729,1708806638823,-500.0,0.00019583,2]
[315084730,1708806638832,-500.0,0.00019583,2]
[315084731,1708806638842,-166.666666,0.00019627,2]
[315084732,1708806638852,-4808.45,0.00019654,3]
[315084733,1708806638861,-5770.14,0.00019664,3]
[315084734,1708806638870,-3025.87,0.00019674,3]
[315084735,1708806638880,-4186.18,0.00019724,2]
[315084736,1708806638890,-500.0,0.00019724,2]
[315084737,1708806638899,-500.0,0.00019724,2]